Cogmind - Beta 13 @@@ ROGUE MODE // 2024.04.29 @ 08:41:07 Player: BionicBot Result: Destroyed by Y-45 Defender with Heavy Assault Rifle Performance ------------- Evolutions (1) 500 Regions Visited (2) 400 Robots Destroyed (58) 290 Value Destroyed (964) 964 Prototype IDs (2) 40 Alien Tech Used (0) 0 Bonus (0) 0 TOTAL SCORE: 2194 Bonus ------- None Cogmind --------- Core Integrity 0/400 Matter 300/300 Energy 100/100 System Corruption 0% Temperature Cool (9) Movement Core (400) Ox7 Location -9/Materials Parts ------- > --- POWER (1) -------- (None) > --- PROPULSION (4) --- (None) > --- UTILITY (2) ------ Large Storage Unit > --- WEAPON (2) ------- Mace > --- INVENTORY (15) --- Ion Engine Huge Storage Unit High-capacity Matter Pod (200) Visual Processing Unit Terrain Scanner Improved Terrain Scanner Improved Terrain Scanner Seismic Detector ECM Suite Power Shielding Tractor Beam Medium Laser Assault Rifle Peak State ------------ > --- POWER ------------ Ion Engine > --- PROPULSION ------- Light Treads Light Treads > --- UTILITY ---------- Improved Terrain Scanner Improved Terrain Scanner > --- WEAPON ----------- Medium Laser Assault Rifle > --- INVENTORY -------- Ion Engine Light Ion Engine [Rating: 11] Favorites ----------- Power Ion Engine Engine Ion Engine Propulsion Aluminum Leg Treads Light Treads Leg Aluminum Leg Utility Large Storage Unit Device Improved Terrain Scanner Storage Large Storage Unit Protection Light Armor Plating Weapon Medium Laser Energy Gun Medium Laser Ballistic Gun Assault Rifle Impact Weapon Mace Build | -11 -10 -9 ------- Run | Yrd Mat Mat Slots Evolved 2 | . . 2 Power . | . . . Propulsion 2 | . . 2 Utility . | . . . Weapon . | . . . Parts Attached 31 | 11 8 12 Power 6 | 1 2 3 Engine 6 | 1 2 3 Core . | . . . Reactor . | . . . Propulsion 8 | 2 2 4 Treads 2 | 2 . . Leg 6 | . 2 4 Wheel . | . . . Hover . | . . . Flight . | . . . Utility 12 | 6 4 2 Device 5 | 5 . . Storage 6 | 1 4 1 Processor . | . . . Hackware . | . . . Protection 1 | . . 1 Artifact . | . . . Weapon 5 | 2 . 3 Energy Gun 2 | 1 . 1 Energy Cannon . | . . . Ballistic Gun 1 | 1 . . Ballistic Cannon . | . . . Launcher . | . . . Special Weapon . | . . . Impact Weapon 2 | . . 2 Slashing Weapon . | . . . Piercing Weapon . | . . . Special Melee Weapon . | . . . Unidentified Prototypes . | . . . Parts Lost 9 | . 1 8 Power 3 | . 1 2 Propulsion 4 | . . 4 Utility 1 | . . 1 Weapon 1 | . . 1 Highest Loss Streak 2 | . 1 2 To Critical Strikes . | . . . Average Slot Usage (%) 86 | . 99 73 Engine 11 | . 13 10 Treads 5 | . 11 . Leg 20 | . 15 24 Storage 19 | . 27 12 Protection 1 | . . 3 Energy Gun 7 | . 14 1 Ballistic Gun 7 | . 14 1 Impact Weapon 10 | . . 19 Naked Turns . | . . . Heaviest Build 93 | 12 93 33 Greatest Support 40 | 40 40 40 Greatest Overweight (x) 30 | 1 30 9 Average Overweight (x) 1 | . 2 . Largest Inventory Capacity 25 | 5 25 15 Average Capacity 17 | 5 22 15 Most Carried 14 | 4 14 13 Average Carried 10 | 2 10 12 Final Capacity 15 | 5 15 15 Final Carried 13 | 4 13 13 Class Distribution -------------------- 100% | Mutant Dominant Class ---------------- Mutant | -10/Materials Mutant | -9/Materials Resources | -11 -10 -9 ----------- Run | Yrd Mat Mat Matter Collected 861 | 412 282 167 Remotely . | . . . Salvage Created 1455 | 206 455 794 Parts 66 | 13 29 24 Haulers Intercepted . | . . . Recyclers Shooed . | . . . Parts Field Recycled . | . . . Retrieved Matter . | . . . Parts Self-Destructed . | . . . Prevented . | . . . Kills | -11 -10 -9 ------- Run | Yrd Mat Mat Combat Hostiles Destroyed 37 | . 15 22 Melee 9 | . . 9 Guns 16 | . 15 1 Classes Destroyed 9 | 3 3 3 Worker 6 | 2 . 4 Builder 2 | . . 2 Tunneler 3 | 3 . . Recycler 2 | 1 . 1 Operator 1 | . . 1 Watcher 7 | . 3 4 Swarmer 21 | . 9 12 Grunt 13 | . 6 7 Sentry 3 | . . 3 Best Kill Streak 6 | 2 4 6 Combat Bots Only 6 | . 3 6 Max Kills in Single Turn 1 | 1 1 1 Gunslinging . | . . . Exploded . | . . . Melee 1 | . . 1 Uniques/NPCs Destroyed . | . . . Combat | -11 -10 -9 -------- Run | Yrd Mat Mat Hostile Shots Fired 271 | . 95 176 Missed 70 | . 30 40 Damage Taken 2053 | . 650 1403 Core 558 | . 145 413 Absorbed by Shields . | . . . Regen/Repaired (Parts) 173 | . 18 155 Core Remaining (%) 71 | 100 42 . Volleys Fired 68 | 15 50 3 Largest 2 | 2 2 2 Hottest 70 | 70 70 70 Shots Fired 135 | 30 99 6 Gun 135 | 30 99 6 Cannon . | . . . Launcher . | . . . Special . | . . . Kinetic 68 | 15 50 3 Thermal 67 | 15 49 3 Explosive . | . . . Electromagnetic . | . . . Robot Hit Streak 15 | 6 15 12 Robot Miss Streak 4 | 4 4 . Penetration Max . | . . . Secondary Targets 4 | . 4 . Max Gunslinging Chain 1 | . 1 . Shots Hit Robots 149 | 14 58 77 Core Hits 40 | 7 23 10 Critical Kills 3 | . . 3 Critical Parts Destroyed 12 | . 1 11 Critical Strikes 20 | 1 4 15 Burn 4 | 1 3 . Destroy 1 | . 1 . Smash 15 | . . 15 Melee Attacks 99 | . . 99 Impact 99 | . . 99 Slashing . | . . . Piercing . | . . . Sneak Attacks 10 | . . 10 Combat Hostiles 1 | . . 1 Follow-up Attacks 14 | . . 14 Damage Inflicted 3455 | 164 777 2514 Guns 1002 | 164 762 76 Cannons . | . . . Explosions . | . . . Melee 2434 | . . 2434 Ramming 19 | . 15 4 Kinetic 455 | 76 341 38 Thermal 547 | 88 421 38 Explosive . | . . . Electromagnetic . | . . . Impact 2434 | . . 2434 Slashing . | . . . Piercing . | . . . Highest Corruption . | . . . Average Corruption . | . . . Corruption Purged . | . . . Corruption Blocked . | . . . Overload Shots . | . . . Overflow Damage 703 | . . 703 Projectiles . | . . . Explosions . | . . . Melee 703 | . . 703 Knockbacks 8 | . . 8 Impact 8 | . . 8 Kinetic . | . . . Secondary . | . . . Self-Inflicted Damage . | . . . Shots . | . . . Rammed 1 | . 1 . Targets Rammed 3 | . 2 1 Kicked 2 | . 1 1 Crushed . | . . . Highest Temperature 195 | 36 195 4 Average Temperature 40 | 15 47 2 Received Heat Transfer 636 | . 222 414 Siege Activations . | . . . Robots Corrupted . | . . . Combat Hostiles . | . . . Parts Fried 26 | . . 26 Impact Corruptions 40 | . . 40 Robots Melted . | . . . Combat Hostiles . | . . . Parts Melted 2 | . 2 . Heat Transferred 1924 | 333 1480 111 Parts Sabotaged . | . . . Parts Stolen . | . . . Parts Stripped . | . . . Power Chain Reactions . | . . . Alert | -11 -10 -9 ------- Run | Yrd Mat Mat Peak Influence 286 | 30 136 286 Initial 20 | . 19 20 Average 112 | 18 54 181 Maximum Alert Level 1 | . . 1 Low Security (%) 73 | 100 100 44 Level 1 26 | . . 55 Level 2 . | . . . Level 3 . | . . . Level 4 . | . . . Level 5 . | . . . High Security . | . . . Max Security . | . . . Squads Dispatched 7 | . 2 5 Investigation 2 | . 1 1 Extermination . | . . . Reinforcement 5 | . 1 4 Assault . | . . . Garrison . | . . . Intercept . | . . . Searches Triggered . | . . . Construction Impeded . | . . . Haulers Reinforced . | . . . Active Scanning Responses . | . . . Cargo Convoy Interrupts . | . . . Stealth | -11 -10 -9 --------- Run | Yrd Mat Mat Distress Signals 2 | . 2 . Communications Jammed . | . . . Distress Signals . | . . . Times Spotted 55 | . 19 36 Peak Tracking Total 8 | . 4 8 Tactical Retreats 3 | . . 3 Traps | -11 -10 -9 ------- Run | Yrd Mat Mat Traps Triggered 2 | . 1 1 Indirectly . | . . . Trap Hack Attempts . | . . . Triggered . | . . . Disarmed . | . . . Reprogrammed . | . . . Reused . | . . . Traps Extracted . | . . . Installed . | . . . Triggered . | . . . Machines | -11 -10 -9 ---------- Run | Yrd Mat Mat Machines Disabled . | . . . Max in Single Turn . | . . . Machines Repaired . | . . . Machines Dismantled . | . . . Machines Sabotaged . | . . . Overloaded Fab Kills . | . . . Hacking | -11 -10 -9 --------- Run | Yrd Mat Mat Machines Accessed 11 | . 6 5 Terminals 7 | . 4 3 Fabricators . | . . . Repair Stations 3 | . 1 2 Recycling Units 1 | . 1 . Scanalyzers . | . . . Garrison Access . | . . . Total Hacks 30 | . 12 18 Successful 15 | . 9 6 Failed 15 | . 3 12 Catastrophic 2 | . 1 1 Database Lockouts . | . . . Manual . | . . . Terminals 18 | . 9 9 Fabricators . | . . . Repair Stations 11 | . 2 9 Recycling Units 1 | . 1 . Scanalyzers . | . . . Garrison Access . | . . . Terminal Hacks 8 | . 6 2 Robot Analysis 1 | . 1 . Prototype ID Bank 1 | . 1 . Branch Access Points 2 | . 1 1 Alert Level 1 | . 1 . Locate Traps 1 | . 1 . Assault Status 1 | . . 1 Zone Layout 1 | . 1 . Fabricator Hacks . | . . . Repair Station Hacks 6 | . 2 4 Scan Component 3 | . 1 2 Repair 3 | . 1 2 Recycling Unit Hacks 1 | . 1 . Report Inventory 1 | . 1 . Scanalyzer . | . . . Garrison Access Hacks . | . . . Unauthorized Hacks . | . . . Terminals . | . . . Fabricators . | . . . Repair Stations . | . . . Recycling Units . | . . . Scanalyzers . | . . . Garrison Access . | . . . Data Cores Recovered . | . . . Used . | . . . Hacking Detections 8 | . 3 5 Full Trace Events 2 | . 1 1 Feedback Events . | . . . Feedback Blocked . | . . . Robot Schematics Acquired . | . . . Robots Built . | . . . Authchips . | . . . Time . | . . . Total Robot Build Rating . | . . . Part Schematics Acquired . | . . . Parts Built . | . . . Authchips . | . . . Time . | . . . Total Part Build Rating . | . . . Parts Repaired 3 | . 1 2 Time 78 | . 26 52 Parts Recycled . | . . . Recycled Matter . | . . . Retrieved Matter . | . . . Retrieved Components . | . . . Parts Scanalyzed . | . . . Part Schematics Acquired . | . . . Parts Damaged . | . . . Bothacking | -11 -10 -9 ------------ Run | Yrd Mat Mat Used RIF Installer . | . . . Robots Hacked . | . . . Non-combat . | . . . Combat . | . . . Robot Hacks Applied . | . . . Relay Couplers Released . | . . . Fabnet Peak Effective % . | . . . Robots Rewired . | . . . Allies Hacked . | . . . Hacks Repelled . | . . . Allies | -11 -10 -9 -------- Run | Yrd Mat Mat Total Allies . | . . . Largest Group . | . . . Highest-Rated Group . | . . . Highest-Rated Ally . | . . . Total Orders . | . . . Ally Attacks . | . . . Total Damage . | . . . Kills . | . . . Allies Corrupted . | . . . Allies Melted . | . . . Intel | -11 -10 -9 ------- Run | Yrd Mat Mat Robot Analysis Total 1 | . 1 . Derelict Logs Recovered . | . . . Drone Launches . | . . . Drone Recoveries . | . . . Exploration | -11 -10 -9 ------------- Run | Yrd Mat Mat Turns Passed 3678 | 251 1696 1731 Spaces Moved 1297 | 116 468 713 Core 10 | 5 2 3 Treads 326 | 111 215 . Legs 961 | . 251 710 Wheels . | . . . Hover . | . . . Flight . | . . . Fastest Speed 50 | 50 160 120 Average Speed 229 | 156 315 185 Slowest Speed 1550 | 160 1550 500 Overloaded Moves . | . . . Propulsion Burnouts . | . . . Robots Hopped . | . . . Cave-ins Triggered . | . . . Exploration Rate (%) 46 | 5 79 54 Regions Visited 2 Branch Regions . Pre-discovered Areas . | . . . Known Exits Taken . | . . . Unknown Exits Taken 2 | 1 1 . Scrap Searched . | . . . Spaces Dug . | . . . Terrain Destroyed . | . . . Melee . | . . . Projectile . | . . . AOE . | . . . Terrain Rammed . | . . . Walls Destroyed . | . . . Machines Disabled . | . . . Actions | -11 -10 -9 --------- Run | Yrd Mat Mat Total 1707 | 154 583 970 Wait 183 | . 34 149 Move 1295 | 115 467 713 Hop . | . . . Pick Up 38 | 12 18 8 Fast Attach . | . . . Attach 18 | 7 4 7 Detach 1 | . . 1 Swap 13 | 4 4 5 Drop 8 | 1 4 3 Fire 68 | 15 50 3 Melee 80 | . . 80 Ram . | . . . Kick 2 | . 1 1 Crush 1 | . 1 . Escape Stasis . | . . . Rewire . | . . . Trap . | . . . Miscellaneous . | . . . Route ------- -11/Scrapyard -10/Materials (discovered 3 exits: *Mat x2 / *Min) -9/Materials (discovered 4 exits: [*Mat x2] / *Min x2) History --------- Turn | Location | Event 28 | -11/Scrapyard | Discovered new exit (range 16) 252 | -11/Scrapyard | Entered Materials 310 | -10/Materials | Build established: Mutant 385 | -10/Materials | Identified exit to Mines 492 | -10/Materials | Repaired Ion Engine 1166 | -10/Materials | Discovered new exit (range 9) 1669 | -10/Materials | Core integrity fell below 50% 1882 | -10/Materials | Discovered new exit (range 12) 1948 | -10/Materials | Entered another Materials area 1948 | -9/Materials | Evolved 2 slots: Propulsion x2 2030 | -9/Materials | Discovered new exit (range 6) 2534 | -9/Materials | Identified exit to Mines 2701 | -9/Materials | Repaired Aluminum Leg 2732 | -9/Materials | Repaired Aluminum Leg 3102 | -9/Materials | Discovered new exit (range 11) 3145 | -9/Materials | Core integrity fell below 50% 3622 | -9/Materials | Discovered new exit (range 8) 3667 | -9/Materials | Core integrity fell below 20% 3679 | -9/Materials | Destroyed by Y-45 Defender with Heavy Assault Rifle Last Messages --------------- 03560_ Sml. Laser fried. 03622_ EXIT=FOUND 03633_ Aluminum Leg destroyed. 03658_ Y-45 Defender suffers critical hit (Smash). 03658_ Destroyed Lgt. Treads. 03658_ Y-45 Defender system corrupted by crushing effect. 03658_ Hammer follow-up attack on Y-45 Defender. 03662_ Critical hit (Burn: +37). 03663_ Y-45 Defender IFF system glitched. 03665_ Ion Engine destroyed. 03666_ Hammer follow-up attack on Y-45 Defender. 03666_ Y-45 Defender suffers critical hit (Smash). 03670_ Critical hit (Burn: +37). 03671_ Hammer destroyed. 03671_ Critical hit (Burn: +37). 03673_ Y-45 Defender misfires. 03673_ Electrolysis Chamber disabled. Map ----- +----------------------------------------------------+ | ??????????????????????????????????????????????? | | ??????????????????????????????????????????????? | | ??????????????????????????????????????????????? | | ??????????????????????????????????????????????? | | ??????????????????????????????????????????????? | | ??????????????????????????????????????????????? | | ###???????????????????????????????????????????? | | T #???????????????????????????????????????????? | | #???????????????????????????????????????????? | | ""#??????????????????? ???????????????????? | | ""#??????????????????? ???????????????????? | | ""#??????????????????? ???????????????????? | | #??????????????????? ???????????????????? | | ###??????????????????? | ????????????"??????? | | ??????????????????????# #??????????? ??????? | | ??????????????????????# ##??????????/##?????? | | ??????????????????????# ??????????? ??????? | | ###????????????????##?# ??????????? ??????? | | #????????????????? ?# ??????????? ??????? | | #???##???????????? # #????????###/#+?????? | | #### ###??????????? # ########## ??????? | | # #????????????+ ## # ??????? | | # #????????????# ##